[Event "Late-Titled-Tuesday-Blitz-June-18-2024"]
[Site "Chess.com"]
[Date "2024.06.18"]
[Round "4"]
[White "alexrustemov"]
[Black "Polish_fighter3000"]
[Result "0-1"]
[WhiteElo "2864"]
[BlackElo "3090"]
[TimeControl "180+1"]
[EndTime "14:43:01 PDT"]
[Termination "Polish_fighter3000 won on time"]

1. d4 {[%clk 0:03:00.9]} 1... Nf6 {[%clk 0:03:00.3]} 2. c4 {[%clk 0:03:01.1]}
2... g6 {[%clk 0:03:01]} 3. g3 {[%clk 0:03:00.8]} 3... d6 {[%clk 0:02:54.1]} 4.
Bg2 {[%clk 0:03:00.5]} 4... Bg7 {[%clk 0:02:54.6]} 5. Nc3 {[%clk 0:03:00.6]}
5... O-O {[%clk 0:02:54.6]} 6. Nf3 {[%clk 0:03:00.7]} 6... c6 {[%clk 0:02:50.5]}
7. O-O {[%clk 0:03:00.9]} 7... Bf5 {[%clk 0:02:51.1]} 8. b3 {[%clk 0:02:56.7]}
8... Ne4 {[%clk 0:02:50.5]} 9. Bb2 {[%clk 0:02:57.1]} 9... Nxc3 {[%clk
0:02:50.7]} 10. Bxc3 {[%clk 0:02:57.7]} 10... Be4 {[%clk 0:02:51.3]} 11. Rc1
{[%clk 0:02:56.2]} 11... Nd7 {[%clk 0:02:50.5]} 12. e3 {[%clk 0:02:56.4]} 12...
e6 {[%clk 0:02:37.6]} 13. Qe2 {[%clk 0:02:56.3]} 13... h5 {[%clk 0:02:31.3]} 14.
Rfd1 {[%clk 0:02:56]} 14... d5 {[%clk 0:02:29.3]} 15. Bf1 {[%clk 0:02:45.6]}
15... a5 {[%clk 0:02:26.3]} 16. Nd2 {[%clk 0:02:42.1]} 16... Bf5 {[%clk
0:02:26.4]} 17. h3 {[%clk 0:02:39.5]} 17... Nf6 {[%clk 0:02:24.1]} 18. Bg2
{[%clk 0:02:33.9]} 18... Qe7 {[%clk 0:02:09.3]} 19. a4 {[%clk 0:02:22.1]} 19...
Rfd8 {[%clk 0:02:07]} 20. Nf3 {[%clk 0:02:14.3]} 20... Ne4 {[%clk 0:02:04.6]}
21. Be1 {[%clk 0:02:13]} 21... g5 {[%clk 0:02:04.3]} 22. Ne5 {[%clk 0:02:09.9]}
22... Bxe5 {[%clk 0:01:34.2]} 23. dxe5 {[%clk 0:02:09.3]} 23... g4 {[%clk
0:01:34.8]} 24. Kh2 {[%clk 0:01:41.3]} 24... Ng5 {[%clk 0:01:30.6]} 25. f3
{[%clk 0:01:36.4]} 25... Kg7 {[%clk 0:01:22.1]} 26. fxg4 {[%clk 0:01:17.6]}
26... hxg4 {[%clk 0:01:23]} 27. h4 {[%clk 0:01:18.1]} 27... Rh8 {[%clk
0:01:22.4]} 28. Kg1 {[%clk 0:01:12.5]} 28... Nf3+ {[%clk 0:01:20]} 29. Bxf3
{[%clk 0:01:11.7]} 29... gxf3 {[%clk 0:01:20.9]} 30. Qxf3 {[%clk 0:01:12.1]}
30... Rh6 {[%clk 0:01:21.2]} 31. cxd5 {[%clk 0:01:08]} 31... cxd5 {[%clk
0:01:22.1]} 32. Rd4 {[%clk 0:01:03.9]} 32... Rg6 {[%clk 0:01:12.8]} 33. Rf4
{[%clk 0:00:47.8]} 33... Rh8 {[%clk 0:01:12.5]} 34. Kf2 {[%clk 0:00:46.2]} 34...
Be4 {[%clk 0:01:06.4]} 35. Rxe4 {[%clk 0:00:43.8]} 35... dxe4 {[%clk 0:01:06.2]}
36. Qxe4 {[%clk 0:00:44.4]} 36... Qa3 {[%clk 0:00:49.5]} 37. Qc4 {[%clk
0:00:39.3]} 37... Rh5 {[%clk 0:00:47.3]} 38. e4 {[%clk 0:00:37.9]} 38... Rh8
{[%clk 0:00:22.9]} 39. Bxa5 {[%clk 0:00:37.2]} 39... Rg4 {[%clk 0:00:15]} 40.
Bd2 {[%clk 0:00:34.9]} 40... Qe7 {[%clk 0:00:11.7]} 41. Qe2 {[%clk 0:00:28]}
41... Rhxh4 {[%clk 0:00:08]} 42. Rg1 {[%clk 0:00:22.3]} 42... Rh2+ {[%clk
0:00:05.9]} 43. Rg2 {[%clk 0:00:22.9]} 43... Rxg2+ {[%clk 0:00:05.6]} 44. Kxg2
{[%clk 0:00:23.5]} 44... Rg6 {[%clk 0:00:05.9]} 45. Qd3 {[%clk 0:00:18.9]} 45...
Qc5 {[%clk 0:00:05.4]} 46. Bf4 {[%clk 0:00:18.2]} 46... Qa3 {[%clk 0:00:03.7]}
47. Kf3 {[%clk 0:00:18]} 47... Qa1 {[%clk 0:00:03.2]} 48. Kg2 {[%clk 0:00:15.5]}
48... Qb2+ {[%clk 0:00:03]} 49. Kf3 {[%clk 0:00:15.2]} 49... Kh7 {[%clk
0:00:01.9]} 50. Qb5 {[%clk 0:00:13.3]} 50... Qc3+ {[%clk 0:00:01.3]} 51. Kf2
{[%clk 0:00:13.7]} 51... Qc2+ {[%clk 0:00:01]} 52. Kf3 {[%clk 0:00:14.2]} 52...
Qd1+ {[%clk 0:00:01.5]} 53. Ke3 {[%clk 0:00:13.6]} 53... Qe1+ {[%clk 0:00:01.5]}
54. Kf3 {[%clk 0:00:13.9]} 54... Qd1+ {[%clk 0:00:01.7]} 55. Ke3 {[%clk
0:00:14.3]} 55... Rg7 {[%clk 0:00:01.9]} 56. Qxb7 {[%clk 0:00:12.6]} 56... f5
{[%clk 0:00:02.5]} 57. Qc6 {[%clk 0:00:11.8]} 57... Qxb3+ {[%clk 0:00:02.4]} 58.
Kf2 {[%clk 0:00:11.5]} 58... Qb2+ {[%clk 0:00:02.4]} 59. Kf3 {[%clk 0:00:11.7]}
59... Rb7 {[%clk 0:00:02.3]} 60. exf5 {[%clk 0:00:10.2]} 60... exf5 {[%clk
0:00:01.8]} 61. Be3 {[%clk 0:00:08.7]} 61... Qb4 {[%clk 0:00:01]} 62. Qd5 {[%clk
0:00:07.2]} 62... Qb3 {[%clk 0:00:01]} 63. e6 {[%clk 0:00:07.2]} 63... Qxd5+
{[%clk 0:00:01]} 64. Kf4 {[%clk 0:00:04.2]} 64... Qxe6 {[%clk 0:00:01.9]} 0-1

[Event "Late-Titled-Tuesday-Blitz-June-18-2024"]
[Site "Chess.com"]
[Date "2024.06.18"]
[Round "4"]
[White "Zq1"]
[Black "rionelG"]
[Result "0-1"]
[WhiteElo "2492"]
[BlackElo "2352"]
[TimeControl "180+1"]
[EndTime "14:43:04 PDT"]
[Termination "rionelG won on time"]

1. Nf3 {[%clk 0:03:00.9]} 1... Nf6 {[%clk 0:02:59.9]} 2. c4 {[%clk 0:03:00.8]}
2... g6 {[%clk 0:03:00.5]} 3. Nc3 {[%clk 0:03:00.7]} 3... Bg7 {[%clk 0:03:01.1]}
4. e4 {[%clk 0:02:59.7]} 4... d6 {[%clk 0:03:00.3]} 5. d4 {[%clk 0:02:59.5]}
5... O-O {[%clk 0:03:00.4]} 6. Be2 {[%clk 0:02:59.6]} 6... Na6 {[%clk
0:03:00.3]} 7. O-O {[%clk 0:02:58.6]} 7... e5 {[%clk 0:03:00.2]} 8. Re1 {[%clk
0:02:57.4]} 8... c6 {[%clk 0:02:56.6]} 9. Rb1 {[%clk 0:02:56.4]} 9... exd4
{[%clk 0:02:48.5]} 10. Nxd4 {[%clk 0:02:55.4]} 10... Nc5 {[%clk 0:02:47.4]} 11.
f3 {[%clk 0:02:49.1]} 11... a5 {[%clk 0:02:46.4]} 12. Be3 {[%clk 0:02:48.2]}
12... Re8 {[%clk 0:02:42.7]} 13. Qd2 {[%clk 0:02:46.6]} 13... Nfd7 {[%clk
0:02:33.2]} 14. Rbd1 {[%clk 0:02:44.8]} 14... Ne5 {[%clk 0:02:27]} 15. Bf1
{[%clk 0:02:28.7]} 15... a4 {[%clk 0:02:16]} 16. Nc2 {[%clk 0:02:25.5]} 16...
Be6 {[%clk 0:01:43.1]} 17. Qxd6 {[%clk 0:02:11.2]} 17... Qxd6 {[%clk 0:01:29.5]}
18. Rxd6 {[%clk 0:02:10.3]} 18... Ncd7 {[%clk 0:01:27.8]} 19. Red1 {[%clk
0:01:25.9]} 19... a3 {[%clk 0:01:27.1]} 20. Nxa3 {[%clk 0:01:21.4]} 20... Bf8
{[%clk 0:01:27.4]} 21. c5 {[%clk 0:01:03.1]} 21... Bxd6 {[%clk 0:01:23]} 22.
cxd6 {[%clk 0:01:01.7]} 22... b5 {[%clk 0:01:19.8]} 23. Nc2 {[%clk 0:00:54.9]}
23... Nc4 {[%clk 0:01:18.7]} 24. Bc1 {[%clk 0:00:47.8]} 24... Rec8 {[%clk
0:00:30.5]} 25. Nd4 {[%clk 0:00:38.7]} 25... Ncb6 {[%clk 0:00:29.3]} 26. Nxe6
{[%clk 0:00:35.8]} 26... fxe6 {[%clk 0:00:30.2]} 27. a3 {[%clk 0:00:32.2]} 27...
e5 {[%clk 0:00:29.3]} 28. g3 {[%clk 0:00:31.6]} 28... Kf7 {[%clk 0:00:28.7]} 29.
Bh3 {[%clk 0:00:25.7]} 29... Rd8 {[%clk 0:00:28.8]} 30. f4 {[%clk 0:00:24.2]}
30... Nc4 {[%clk 0:00:22.1]} 31. fxe5 {[%clk 0:00:23.2]} 31... Ndxe5 {[%clk
0:00:21.8]} 32. d7 {[%clk 0:00:18.9]} 32... Nxd7 {[%clk 0:00:18.7]} 33. Rxd7+
{[%clk 0:00:14.1]} 33... Rxd7 {[%clk 0:00:18]} 34. Bxd7 {[%clk 0:00:14]} 34...
Ne5 {[%clk 0:00:17.9]} 35. Bh3 {[%clk 0:00:10.8]} 35... Rd8 {[%clk 0:00:18]} 36.
Bf1 {[%clk 0:00:08.6]} 36... Rd4 {[%clk 0:00:16.3]} 37. Kf2 {[%clk 0:00:08.3]}
37... Nd3+ {[%clk 0:00:15.4]} 38. Ke3 {[%clk 0:00:07.5]} 38... Nxc1 {[%clk
0:00:13.1]} 39. Kxd4 {[%clk 0:00:07.4]} 39... Nb3+ {[%clk 0:00:13.5]} 40. Ke5
{[%clk 0:00:06.7]} 40... Ke7 {[%clk 0:00:12.9]} 41. Ne2 {[%clk 0:00:06]} 41...
Nd2 {[%clk 0:00:12.8]} 42. Kf4 {[%clk 0:00:05]} 42... Nxf1 {[%clk 0:00:12.2]}
43. Nd4 {[%clk 0:00:04.5]} 43... Kd6 {[%clk 0:00:11.8]} 44. Nf3 {[%clk
0:00:03.7]} 44... c5 {[%clk 0:00:09.5]} 45. h4 {[%clk 0:00:03.6]} 45... c4
{[%clk 0:00:09.3]} 46. g4 {[%clk 0:00:03.8]} 46... Kc5 {[%clk 0:00:07.8]} 47. g5
{[%clk 0:00:03.9]} 47... b4 {[%clk 0:00:07.4]} 48. axb4+ {[%clk 0:00:03.2]}
48... Kxb4 {[%clk 0:00:08.3]} 49. e5 {[%clk 0:00:03.6]} 49... Kc5 {[%clk
0:00:08.6]} 50. e6 {[%clk 0:00:02.4]} 50... Kd6 {[%clk 0:00:08.8]} 51. Ke4
{[%clk 0:00:02.4]} 51... Ng3+ {[%clk 0:00:06.5]} 52. Kd4 {[%clk 0:00:02.2]}
52... Kxe6 {[%clk 0:00:06.1]} 53. Kxc4 {[%clk 0:00:02.5]} 53... Kf5 {[%clk
0:00:05]} 54. b4 {[%clk 0:00:02.9]} 54... Kg4 {[%clk 0:00:05.4]} 55. Nd4 {[%clk
0:00:03.1]} 55... Ne4 {[%clk 0:00:05.1]} 56. Kd5 {[%clk 0:00:02.5]} 56... Nc3+
{[%clk 0:00:04.9]} 57. Kc4 {[%clk 0:00:02.4]} 57... Ne4 {[%clk 0:00:05.2]} 58.
Kd5 {[%clk 0:00:01.8]} 58... Nc3+ {[%clk 0:00:05.4]} 59. Ke5 {[%clk 0:00:02.2]}
59... Kxh4 {[%clk 0:00:04.8]} 60. Kf6 {[%clk 0:00:02.5]} 60... Kh5 {[%clk
0:00:03.9]} 61. Ne6 {[%clk 0:00:02]} 61... Nd5+ {[%clk 0:00:03.7]} 62. Kg7
{[%clk 0:00:01]} 62... Nxb4 {[%clk 0:00:03.9]} 63. Kxh7 {[%clk 0:00:01]} 63...
Nd5 {[%clk 0:00:04.4]} 0-1

[Event "Late-Titled-Tuesday-Blitz-June-18-2024"]
[Site "Chess.com"]
[Date "2024.06.18"]
[Round "4"]
[White "dretch"]
[Black "sammartin99"]
[Result "1/2-1/2"]
[WhiteElo "2838"]
[BlackElo "2385"]
[TimeControl "180+1"]
[EndTime "14:43:09 PDT"]
[Termination "Game drawn by 50-move rule"]

1. d4 {[%clk 0:03:00.9]} 1... d5 {[%clk 0:02:58.3]} 2. c4 {[%clk 0:03:01.5]}
2... c6 {[%clk 0:02:58.3]} 3. Nc3 {[%clk 0:03:01.7]} 3... Nf6 {[%clk 0:02:58.2]}
4. e3 {[%clk 0:03:02.2]} 4... Bf5 {[%clk 0:02:57.3]} 5. Qb3 {[%clk 0:02:57.8]}
5... Qb6 {[%clk 0:02:55.9]} 6. Qxb6 {[%clk 0:02:57.3]} 6... axb6 {[%clk
0:02:55.6]} 7. cxd5 {[%clk 0:02:58]} 7... Nxd5 {[%clk 0:02:55.3]} 8. Nxd5 {[%clk
0:02:58.6]} 8... cxd5 {[%clk 0:02:56.2]} 9. Nf3 {[%clk 0:02:58.9]} 9... Nc6
{[%clk 0:02:51.8]} 10. Bb5 {[%clk 0:02:58.4]} 10... Bd7 {[%clk 0:02:51.3]} 11.
Ke2 {[%clk 0:02:56.1]} 11... e6 {[%clk 0:02:49.2]} 12. Bd2 {[%clk 0:02:55.5]}
12... Bd6 {[%clk 0:02:47.4]} 13. Rhc1 {[%clk 0:02:55.1]} 13... Ke7 {[%clk
0:02:47.9]} 14. a4 {[%clk 0:02:47.8]} 14... f6 {[%clk 0:02:47.1]} 15. Bc3 {[%clk
0:02:44.8]} 15... Rhc8 {[%clk 0:02:43]} 16. Ne1 {[%clk 0:02:40.8]} 16... Na5
{[%clk 0:02:37]} 17. Bxd7 {[%clk 0:02:39.4]} 17... Kxd7 {[%clk 0:02:37.9]} 18.
Bxa5 {[%clk 0:02:27.9]} 18... bxa5 {[%clk 0:02:38.8]} 19. Nd3 {[%clk 0:02:26.2]}
19... b6 {[%clk 0:02:39.3]} 20. f4 {[%clk 0:02:18.4]} 20... Rxc1 {[%clk
0:02:22.1]} 21. Rxc1 {[%clk 0:02:18.2]} 21... Rc8 {[%clk 0:02:22.5]} 22. Rxc8
{[%clk 0:02:18.3]} 22... Kxc8 {[%clk 0:02:23.4]} 23. g4 {[%clk 0:02:18.7]} 23...
f5 {[%clk 0:02:02.2]} 24. Kf3 {[%clk 0:02:18.8]} 24... Kb7 {[%clk 0:01:59.8]}
25. Nc1 {[%clk 0:02:07.1]} 25... Ka6 {[%clk 0:01:55.7]} 26. Ne2 {[%clk
0:02:06.2]} 26... b5 {[%clk 0:01:42]} 27. b3 {[%clk 0:02:04.8]} 27... Bb4 {[%clk
0:01:27.8]} 28. Ng3 {[%clk 0:01:56.9]} 28... g6 {[%clk 0:01:27.6]} 29. h4 {[%clk
0:01:54.5]} 29... bxa4 {[%clk 0:01:22.4]} 30. bxa4 {[%clk 0:01:54.3]} 30... Kb6
{[%clk 0:01:23.2]} 31. h5 {[%clk 0:01:51.5]} 31... Kc6 {[%clk 0:01:22.8]} 32. g5
{[%clk 0:01:09.2]} 32... Kd7 {[%clk 0:01:18.2]} 33. h6 {[%clk 0:01:03.5]} 33...
Ke7 {[%clk 0:01:10.5]} 34. Ne2 {[%clk 0:01:00]} 34... Kd7 {[%clk 0:00:53.4]} 35.
Ng1 {[%clk 0:00:59.2]} 35... Kc6 {[%clk 0:00:51.7]} 36. Ke2 {[%clk 0:00:59.3]}
36... Kd7 {[%clk 0:00:51.2]} 37. Nf3 {[%clk 0:00:59.6]} 37... Bd6 {[%clk
0:00:42.1]} 38. Nh4 {[%clk 0:00:57.5]} 38... Bf8 {[%clk 0:00:37.3]} 39. Kd3
{[%clk 0:00:55]} 39... Kc6 {[%clk 0:00:37.7]} 40. Kc2 {[%clk 0:00:53.2]} 40...
Kb6 {[%clk 0:00:36]} 41. Nf3 {[%clk 0:00:51.5]} 41... Bd6 {[%clk 0:00:35.9]} 42.
Ne1 {[%clk 0:00:51.2]} 42... Kc6 {[%clk 0:00:35.7]} 43. Nd3 {[%clk 0:00:51.4]}
43... Kb6 {[%clk 0:00:35.7]} 44. Nb2 {[%clk 0:00:50.3]} 44... Kc6 {[%clk
0:00:35.2]} 45. Nd1 {[%clk 0:00:50.7]} 45... Kb6 {[%clk 0:00:34.4]} 46. Nc3
{[%clk 0:00:50.4]} 46... Kc6 {[%clk 0:00:34.4]} 47. Ne2 {[%clk 0:00:44.8]} 47...
Kb6 {[%clk 0:00:32.9]} 48. Kd1 {[%clk 0:00:40]} 48... Kc6 {[%clk 0:00:33]} 49.
Nc1 {[%clk 0:00:40.5]} 49... Kb6 {[%clk 0:00:32.6]} 50. Nd3 {[%clk 0:00:40.6]}
50... Kc6 {[%clk 0:00:31.8]} 51. Ne1 {[%clk 0:00:38.9]} 51... Kb6 {[%clk
0:00:31.6]} 52. Nf3 {[%clk 0:00:39.6]} 52... Kc6 {[%clk 0:00:31.3]} 53. Kc2
{[%clk 0:00:38.5]} 53... Kb6 {[%clk 0:00:31.4]} 54. Kc3 {[%clk 0:00:37.2]} 54...
Kc6 {[%clk 0:00:20]} 55. Nh4 {[%clk 0:00:37.4]} 55... Bf8 {[%clk 0:00:19.6]} 56.
Kd3 {[%clk 0:00:36.9]} 56... Kb6 {[%clk 0:00:18.5]} 57. Ng2 {[%clk 0:00:33.5]}
57... Kc6 {[%clk 0:00:18]} 58. Ne1 {[%clk 0:00:33.3]} 58... Kb6 {[%clk
0:00:17.8]} 59. Nc2 {[%clk 0:00:31.2]} 59... Bd6 {[%clk 0:00:16.7]} 60. Na1
{[%clk 0:00:30.8]} 60... Kc6 {[%clk 0:00:16.9]} 61. Nb3 {[%clk 0:00:31.2]} 61...
Kb6 {[%clk 0:00:17.5]} 62. Kc2 {[%clk 0:00:31.4]} 62... Be7 {[%clk 0:00:15.8]}
63. Nc1 {[%clk 0:00:23.6]} 63... Bd6 {[%clk 0:00:15.9]} 64. Nd3 {[%clk
0:00:24.2]} 64... Kc6 {[%clk 0:00:16.3]} 65. Nb2 {[%clk 0:00:18.5]} 65... Kb6
{[%clk 0:00:15.9]} 66. Nd1 {[%clk 0:00:18.2]} 66... Kc6 {[%clk 0:00:15.6]} 67.
Nc3 {[%clk 0:00:18.7]} 67... Kb6 {[%clk 0:00:15.8]} 68. Nb5 {[%clk 0:00:19.4]}
68... Bb8 {[%clk 0:00:16]} 69. Kc3 {[%clk 0:00:18.7]} 69... Kc6 {[%clk
0:00:16.1]} 70. Kd3 {[%clk 0:00:19.1]} 70... Kb6 {[%clk 0:00:16.1]} 71. Ke2
{[%clk 0:00:19]} 71... Kc6 {[%clk 0:00:16.6]} 72. Kf3 {[%clk 0:00:19.5]} 72...
Kb6 {[%clk 0:00:17.2]} 73. Kg3 {[%clk 0:00:19.8]} 73... Kc6 {[%clk 0:00:17.4]}
74. Kf2 {[%clk 0:00:19]} 74... Kb6 {[%clk 0:00:17.9]} 75. Kf3 {[%clk 0:00:16.8]}
75... Kc6 {[%clk 0:00:18.4]} 76. Nc3 {[%clk 0:00:16.8]} 76... Kb6 {[%clk
0:00:18.1]} 77. Nb1 {[%clk 0:00:16.1]} 77... Kc6 {[%clk 0:00:18.1]} 78. Nd2
{[%clk 0:00:16.1]} 78... Kb6 {[%clk 0:00:17.7]} 79. Nb3 {[%clk 0:00:16.7]} 79...
Bd6 {[%clk 0:00:18.3]} 80. Nc1 {[%clk 0:00:17.1]} 80... Kc6 {[%clk 0:00:18.2]}
81. Ke2 {[%clk 0:00:17.4]} 81... Kb6 {[%clk 0:00:18.4]} 82. Nb3 {[%clk
0:00:17.9]} 82... Be7 {[%clk 0:00:16.1]} 83. Kd3 {[%clk 0:00:17.7]} 1/2-1/2

[Event "Late-Titled-Tuesday-Blitz-June-18-2024"]
[Site "Chess.com"]
[Date "2024.06.18"]
[Round "4"]
[White "ahkashefi2800"]
[Black "stollenmonster"]
[Result "1-0"]
[WhiteElo "2621"]
[BlackElo "2890"]
[TimeControl "180+1"]
[EndTime "14:43:14 PDT"]
[Termination "ahkashefi2800 won by resignation"]

1. d4 {[%clk 0:02:59.6]} 1... Nf6 {[%clk 0:02:59.5]} 2. Nf3 {[%clk 0:02:54.9]}
2... e6 {[%clk 0:03:00]} 3. Bg5 {[%clk 0:02:54.2]} 3... d5 {[%clk 0:03:00.5]} 4.
Nbd2 {[%clk 0:02:53.5]} 4... Be7 {[%clk 0:03:00.7]} 5. e3 {[%clk 0:02:52.9]}
5... Ne4 {[%clk 0:02:59.3]} 6. Bxe7 {[%clk 0:02:52.1]} 6... Qxe7 {[%clk
0:03:00.2]} 7. Nxe4 {[%clk 0:02:52.8]} 7... dxe4 {[%clk 0:03:01.1]} 8. Nd2
{[%clk 0:02:53.6]} 8... f5 {[%clk 0:03:01.5]} 9. Bc4 {[%clk 0:02:52.2]} 9... O-O
{[%clk 0:03:01.2]} 10. O-O {[%clk 0:02:51.4]} 10... Nd7 {[%clk 0:02:59.5]} 11.
f4 {[%clk 0:02:51.4]} 11... exf3 {[%clk 0:03:00.4]} 12. Nxf3 {[%clk 0:02:47.5]}
12... c6 {[%clk 0:02:49.6]} 13. c3 {[%clk 0:02:47.5]} 13... Kh8 {[%clk 0:02:49]}
14. Qe1 {[%clk 0:02:45.7]} 14... e5 {[%clk 0:02:43.4]} 15. Nh4 {[%clk
0:02:41.6]} 15... g6 {[%clk 0:02:39]} 16. Nf3 {[%clk 0:02:30.7]} 16... e4 {[%clk
0:02:36.1]} 17. Qh4 {[%clk 0:02:22.6]} 17... Qxh4 {[%clk 0:02:30.2]} 18. Nxh4
{[%clk 0:02:22.2]} 18... Nf6 {[%clk 0:02:30.5]} 19. h3 {[%clk 0:02:17]} 19...
Bd7 {[%clk 0:02:16.7]} 20. g3 {[%clk 0:02:16.3]} 20... Nd5 {[%clk 0:02:05]} 21.
Bxd5 {[%clk 0:02:14.5]} 21... cxd5 {[%clk 0:02:05.9]} 22. Ng2 {[%clk 0:02:14.5]}
22... g5 {[%clk 0:01:59.3]} 23. h4 {[%clk 0:02:12.7]} 23... h6 {[%clk
0:01:59.6]} 24. Rf2 {[%clk 0:02:12.5]} 24... Kg7 {[%clk 0:01:57.8]} 25. Kf1
{[%clk 0:02:12.2]} 25... b5 {[%clk 0:01:48.3]} 26. a3 {[%clk 0:02:10.3]} 26...
a5 {[%clk 0:01:46.6]} 27. Ne1 {[%clk 0:02:07.9]} 27... b4 {[%clk 0:01:25.9]} 28.
cxb4 {[%clk 0:01:56.1]} 28... axb4 {[%clk 0:01:26.8]} 29. Nc2 {[%clk 0:01:50.7]}
29... bxa3 {[%clk 0:01:12.5]} 30. bxa3 {[%clk 0:01:50.1]} 30... Rfb8 {[%clk
0:01:08.3]} 31. Ra2 {[%clk 0:01:42.2]} 31... Bb5+ {[%clk 0:01:03.1]} 32. Kg2
{[%clk 0:01:39.8]} 32... Bc4 {[%clk 0:01:03.3]} 33. Ra1 {[%clk 0:01:39]} 33...
Kg6 {[%clk 0:00:54.1]} 34. hxg5 {[%clk 0:01:26.4]} 34... hxg5 {[%clk 0:00:55]}
35. a4 {[%clk 0:01:14.1]} 35... Ra5 {[%clk 0:00:49]} 36. Ne1 {[%clk 0:00:56.4]}
36... Rb4 {[%clk 0:00:39.7]} 37. g4 {[%clk 0:00:50.1]} 37... fxg4 {[%clk
0:00:35]} 38. Kg3 {[%clk 0:00:47.6]} 38... Rbxa4 {[%clk 0:00:31.4]} 39. Rb1
{[%clk 0:00:40.3]} 39... Ra6 {[%clk 0:00:27.9]} 40. Rb8 {[%clk 0:00:34.5]} 40...
Ra1 {[%clk 0:00:25.1]} 41. Rg8+ {[%clk 0:00:29.3]} 41... Kh7 {[%clk 0:00:24.6]}
42. Rff8 {[%clk 0:00:11.3]} 42... Ra7 {[%clk 0:00:16.5]} 43. Ng2 {[%clk
0:00:04.6]} 43... Rf7 {[%clk 0:00:08.6]} 44. Rxf7+ {[%clk 0:00:02.5]} 44... Kxg8
{[%clk 0:00:09]} 45. Rf5 {[%clk 0:00:03.4]} 45... Rf1 {[%clk 0:00:05.2]} 46.
Rxg5+ {[%clk 0:00:02.1]} 46... Kf8 {[%clk 0:00:05.7]} 47. Rxg4 {[%clk
0:00:01.9]} 47... Rf3+ {[%clk 0:00:06.3]} 48. Kh4 {[%clk 0:00:02.3]} 48... Ke7
{[%clk 0:00:06.3]} 49. Rg7+ {[%clk 0:00:02.1]} 49... Kd6 {[%clk 0:00:06.2]} 50.
Rg4 {[%clk 0:00:02.6]} 50... Kc7 {[%clk 0:00:06.2]} 51. Rg3 {[%clk 0:00:02.9]}
51... Kb6 {[%clk 0:00:05.3]} 52. Nf4 {[%clk 0:00:02.9]} 52... Kb5 {[%clk
0:00:04.1]} 53. Rxf3 {[%clk 0:00:03.4]} 53... exf3 {[%clk 0:00:05]} 54. Kg3
{[%clk 0:00:04]} 54... Kb4 {[%clk 0:00:04.9]} 55. Kxf3 {[%clk 0:00:04.3]} 55...
Kc3 {[%clk 0:00:05.6]} 56. Ng6 {[%clk 0:00:03.3]} 56... Kd2 {[%clk 0:00:05.7]}
57. Ne5 {[%clk 0:00:03.4]} 57... Bb3 {[%clk 0:00:06.1]} 58. Kf4 {[%clk
0:00:03.7]} 58... Ba2 {[%clk 0:00:06.3]} 59. Nc6 {[%clk 0:00:04.2]} 59... Kc3
{[%clk 0:00:05.1]} 60. Ne7 {[%clk 0:00:04.7]} 60... Bb3 {[%clk 0:00:04.5]} 61.
Ng6 {[%clk 0:00:04.8]} 61... Ba2 {[%clk 0:00:04.7]} 62. Ne7 {[%clk 0:00:03.4]}
62... Bb3 {[%clk 0:00:04]} 63. Ke5 {[%clk 0:00:03.7]} 63... Kd3 {[%clk
0:00:03.8]} 64. Nxd5 {[%clk 0:00:04.2]} 64... Ba2 {[%clk 0:00:01.8]} 65. e4
{[%clk 0:00:04.5]} 65... Ke2 {[%clk 0:00:02.1]} 66. Nc3+ {[%clk 0:00:04.4]} 1-0